fUSD/lending_fUSD_20251210
["ID","MTS","AMOUNT","RATE_DAILY","PERIOD"]
[398054145,1765341052134,-761.76,0.0001529,2]
[398054146,1765341052143,-169.48874521,0.0001529,2]
[398054147,1765341052153,-500.0,0.0001529,2]
[398054148,1765341052335,-500.0,0.0001529,2]
[398054149,1765341052345,-151.0,0.00015291,2]
[398054150,1765341052355,-9626.23,0.0001531,2]
[398054151,1765341052364,-299.99,0.0001531,2]
[398054152,1765341052374,-150.99,0.0001531,2]
[398054153,1765341052383,-1666.83,0.0001531,2]
[398054154,1765341052392,-9999.99,0.0001531,2]
[398054155,1765341052401,-999.99,0.0001531,2]
[398054156,1765341052410,-5335.03,0.0001531,2]
[398054157,1765341052419,-499.99,0.0001531,2]
[398054158,1765341052429,-3132.34814614,0.00015373,2]
[398054159,1765341052438,-3505.8962,0.0001539,2]
[398054160,1765341052447,-150.0,0.00015479,2]
[398054161,1765341052456,-5282.0,0.00015485,2]
[398054162,1765341052465,-523.47,0.00015489,2]
[398054163,1765341052474,-981.33,0.00015489,2]
[398054164,1765341052483,-500.0,0.00015489,2]
[398054165,1765341052491,-5282.0,0.00015489,2]
[398054166,1765341052500,-500.0,0.0001549,2]
[398054167,1765341052509,-501.94300765,0.0001549,2]
[398054168,1765341052518,-500.0,0.0001549,2]
[398054169,1765341052527,-500.0,0.0001549,2]
[398054170,1765341052536,-500.0,0.0001549,2]
[398054171,1765341052545,-500.0,0.0001549,2]
[398054172,1765341052554,-507.4245446,0.0001549,2]
[398054173,1765341052564,-500.0,0.0001549,2]
[398054174,1765341052574,-500.0,0.0001549,2]
[398054175,1765341052585,-500.0,0.0001549,2]
[398054176,1765341052597,-500.0,0.0001549,2]
[398054177,1765341052606,-500.0,0.0001549,2]
[398054178,1765341052615,-500.0,0.0001549,2]
[398054179,1765341052625,-1001.746,0.0001549,2]
[398054180,1765341052634,-558.26,0.0001549,2]
[398054181,1765341052643,-500.0,0.0001549,2]
[398054182,1765341052652,-500.0,0.0001549,2]
[398054183,1765341052662,-560.43,0.0001549,2]
[398054184,1765341052672,-500.0,0.0001549,2]
[398054185,1765341052680,-500.0,0.0001549,2]
[398054186,1765341052689,-500.0,0.0001549,2]
[398054187,1765341052698,-500.0,0.0001549,2]
[398054188,1765341052707,-500.0,0.0001549,2]
[398054189,1765341052716,-551.35,0.0001549,2]
[398054190,1765341052724,-500.0,0.0001549,2]
[398054191,1765341052733,-500.0,0.0001549,2]
[398054192,1765341052742,-826.63,0.0001549,2]
[398054193,1765341052751,-500.0,0.0001549,2]
[398054194,1765341052760,-500.0,0.0001549,2]
[398054195,1765341052769,-750.42,0.0001549,2]
[398054196,1765341052778,-510.12,0.0001549,2]
[398054197,1765341052787,-500.0,0.0001549,2]
[398054198,1765341052796,-329.23531327,0.0001549,2]
[398054199,1765341052805,-500.0,0.0001549,2]
[398054200,1765341052814,-151.0,0.0001549,2]
[398054201,1765341052823,-500.0,0.0001549,2]
[398054202,1765341052831,-521.81715923,0.0001549,2]
[398054203,1765341052840,-500.0,0.0001549,2]
[398054204,1765341052849,-500.0,0.0001549,2]
[398054205,1765341052858,-500.0,0.0001549,2]
[398054206,1765341052867,-500.0,0.0001549,2]
[398054207,1765341052875,-500.0,0.0001549,2]
[398054208,1765341052884,-500.0,0.0001549,2]
[398054209,1765341052893,-500.0,0.0001549,2]
[398054210,1765341052903,-500.0,0.0001549,2]
[398054211,1765341052913,-521.26,0.0001549,2]
[398054212,1765341052922,-500.0,0.0001549,2]
[398054213,1765341052933,-500.0,0.0001549,2]
[398054214,1765341052942,-1195.1,0.0001549,2]
[398054215,1765341052951,-500.0,0.0001549,2]
[398054216,1765341052960,-500.0,0.0001549,2]
[398054217,1765341052969,-500.0,0.0001549,2]
[398054218,1765341052977,-500.0,0.0001549,2]
[398054219,1765341052987,-526.51790228,0.0001549,2]
[398054220,1765341052997,-402.95186949,0.0001549,2]
[398054221,1765341053006,-965.55,0.0001549,2]
[398054222,1765341053015,-500.0,0.0001549,2]
[398054223,1765341053026,-938.82,0.0001549,2]
[398054224,1765341053035,-500.0,0.0001549,2]
[398054225,1765341053044,-151.0,0.0001549,2]
[398054226,1765341053053,-500.0,0.0001549,2]
[398054227,1765341053063,-500.0,0.0001549,2]
[398054228,1765341053073,-500.0,0.0001549,2]
[398054229,1765341053082,-500.0,0.0001549,2]
[398054230,1765341053092,-500.0,0.0001549,2]
[398054231,1765341053101,-688.89,0.0001549,2]
[398054232,1765341053110,-500.0,0.0001549,2]
[398054233,1765341053119,-500.0,0.0001549,2]
[398054234,1765341053129,-500.0,0.0001549,2]
[398054235,1765341053138,-823.93,0.0001549,2]
[398054236,1765341053147,-538.76,0.0001549,2]
[398054237,1765341053156,-876.64,0.0001549,2]
[398054238,1765341053166,-2180.35,0.0001549,2]
[398054239,1765341053175,-530.38359974,0.0001549,2]
[398054240,1765341053184,-500.0,0.0001549,2]
[398054241,1765341053193,-500.0,0.0001549,2]
[398054242,1765341053204,-500.0,0.0001549,2]
[398054243,1765341053214,-500.0,0.0001549,2]
[398054244,1765341053224,-500.0,0.0001549,2]
[398054245,1765341053234,-500.0,0.0001549,2]
[398054246,1765341053244,-500.0,0.0001549,2]
[398054247,1765341053253,-500.0,0.0001549,2]
[398054248,1765341053267,-500.0,0.0001549,2]
[398054249,1765341053277,-764.36,0.0001549,2]
[398054250,1765341053286,-500.0,0.0001549,2]
[398054251,1765341053296,-553.95,0.0001549,2]
[398054252,1765341053305,-500.0,0.0001549,2]
[398054253,1765341053316,-500.0,0.0001549,2]
[398054254,1765341053325,-500.0,0.0001549,2]
[398054255,1765341053335,-779.92,0.0001549,2]
[398054256,1765341053345,-500.0,0.0001549,2]
[398054257,1765341053355,-883.88,0.0001549,2]
[398054258,1765341053364,-753.41,0.0001549,2]
[398054259,1765341053373,-558.55,0.0001549,2]
[398054260,1765341053383,-1265.31,0.0001549,2]
[398054261,1765341053393,-500.0,0.0001549,2]
[398054262,1765341053402,-500.0,0.0001549,2]
[398054263,1765341053412,-500.0,0.0001549,2]
[398054264,1765341053421,-500.0,0.0001549,2]
[398054265,1765341053431,-500.0,0.0001549,2]
[398054266,1765341053439,-956.77,0.0001549,2]
[398054267,1765341053449,-500.0,0.0001549,2]
[398054268,1765341053459,-500.0,0.0001549,2]
[398054269,1765341053468,-790.76,0.0001549,2]
[398054270,1765341053478,-500.0,0.0001549,2]
[398054271,1765341053488,-500.0,0.0001549,2]
[398054272,1765341053497,-500.0,0.0001549,2]
[398054273,1765341053506,-518.61,0.0001549,2]
[398054274,1765341053516,-1210.98,0.0001549,2]
[398054275,1765341053525,-500.0,0.0001549,2]
[398054276,1765341053534,-880.06,0.0001549,2]
[398054277,1765341053544,-500.0,0.0001549,2]
[398054278,1765341053553,-515.31,0.0001549,2]
[398054279,1765341053562,-966.35,0.0001549,2]
[398054280,1765341053571,-500.0,0.0001549,2]
[398054281,1765341053581,-151.0,0.0001549,2]
[398054282,1765341053590,-500.0,0.0001549,2]
[398054283,1765341053599,-1152.1,0.0001549,2]
[398054284,1765341053611,-500.0,0.0001549,2]
[398054285,1765341053620,-500.0,0.0001549,2]
[398054286,1765341053630,-651.08,0.0001549,2]
[398054287,1765341053639,-500.0,0.0001549,2]
[398054288,1765341053648,-500.0,0.0001549,2]
[398054289,1765341053657,-628.32,0.0001549,2]
[398054290,1765341053666,-576.37,0.0001549,2]
[398054291,1765341053675,-500.0,0.0001549,2]
[398054292,1765341053685,-500.0,0.0001549,2]
[398054293,1765341053694,-617.34,0.0001549,2]
[398054294,1765341053703,-590.42,0.0001549,2]
[398054295,1765341053711,-500.0,0.0001549,2]
[398054296,1765341053721,-500.0,0.0001549,2]
[398054297,1765341053730,-500.0,0.0001549,2]
[398054298,1765341053739,-632.89,0.0001549,2]
[398054299,1765341053749,-500.0,0.0001549,2]
[398054300,1765341053758,-500.0,0.0001549,2]
[398054301,1765341053767,-510.84487666,0.0001549,2]
[398054302,1765341053777,-606.09327458,0.0001549,2]
[398054303,1765341053786,-500.0,0.0001549,2]
[398054304,1765341053795,-500.0,0.0001549,2]
[398054305,1765341053804,-500.0,0.0001549,2]
[398054306,1765341053813,-624.0,0.0001549,2]
[398054307,1765341053822,-510.40900744,0.0001549,2]
[398054308,1765341053831,-500.0,0.0001549,2]
[398054309,1765341053840,-500.0,0.0001549,2]
[398054310,1765341053849,-500.0,0.0001549,2]
[398054311,1765341053858,-500.0,0.0001549,2]
[398054312,1765341053868,-981.33,0.0001549,2]
[398054313,1765341053877,-306.74489174,0.0001549,2]
[398054314,1765341053886,-500.0,0.0001549,2]
[398054315,1765341053895,-500.0,0.0001549,2]
[398054316,1765341053904,-500.0,0.0001549,2]
[398054317,1765341053913,-500.0,0.0001549,2]
[398054318,1765341053923,-500.0,0.0001549,2]
[398054319,1765341053932,-500.0,0.0001549,2]
[398054320,1765341053942,-500.0,0.0001549,2]
[398054321,1765341053951,-661.83,0.0001549,2]
[398054322,1765341053960,-500.0,0.0001549,2]
[398054323,1765341053969,-678.54,0.0001549,2]
[398054324,1765341053979,-500.0,0.0001549,2]
[398054325,1765341053988,-500.0,0.0001549,2]
[398054326,1765341053997,-502.16032037,0.00015491,2]
[398054327,1765341054006,-500.0,0.00015491,2]
[398054328,1765341054015,-500.0,0.00015491,2]
[398054329,1765341054024,-501.19456959,0.00015491,2]
[398054330,1765341054034,-500.0,0.00015491,2]
[398054331,1765341054043,-500.0,0.00015491,2]
[398054332,1765341054052,-500.0,0.00015491,2]
[398054333,1765341054062,-500.0,0.00015491,2]
[398054334,1765341054071,-500.0,0.00015491,2]
[398054335,1765341054080,-500.0,0.00015491,2]
[398054336,1765341054089,-500.0,0.00015491,2]
[398054337,1765341054099,-209.97267366,0.00015491,2]
[398054338,1765341054108,-500.0,0.00015491,2]
[398054339,1765341054118,-509.60056811,0.00015491,2]
[398054340,1765341054127,-500.0,0.00015491,2]
[398054341,1765341054137,-500.0,0.00015491,2]
[398054342,1765341054146,-500.0,0.00015491,2]
[398054343,1765341054155,-500.0,0.00015491,2]
[398054344,1765341054165,-639.74220401,0.00015491,2]
[398054345,1765341054175,-502.37705023,0.00015491,2]
[398054346,1765341054185,-500.0,0.00015491,2]
[398054347,1765341054194,-500.0,0.00015491,2]
[398054348,1765341054203,-500.0,0.00015491,2]
[398054349,1765341054212,-508.0837727,0.00015491,2]
[398054350,1765341054222,-500.0,0.00015491,2]
[398054351,1765341054231,-500.0,0.00015491,2]
[398054352,1765341054240,-500.0,0.00015491,2]
[398054353,1765341054249,-500.0,0.00015491,2]
[398054354,1765341054258,-503.40949526,0.00015491,2]
[398054355,1765341054267,-500.0,0.00015491,2]
[398054356,1765341054276,-503.58431503,0.00015491,2]
[398054357,1765341054286,-500.0,0.00015491,2]
[398054358,1765341054296,-500.0,0.00015491,2]
[398054359,1765341054305,-500.0,0.00015491,2]
[398054360,1765341054314,-500.0,0.00015491,2]
[398054361,1765341054324,-500.0,0.00015491,2]
[398054362,1765341054333,-500.0,0.00015491,2]
[398054363,1765341054342,-500.0,0.00015491,2]
[398054364,1765341054351,-500.0,0.00015491,2]
[398054365,1765341054360,-500.0,0.00015491,2]
[398054366,1765341054369,-500.0,0.00015491,2]
[398054367,1765341054378,-500.0,0.00015491,2]
[398054368,1765341054387,-500.0,0.00015491,2]
[398054369,1765341054396,-500.0,0.00015491,2]
[398054370,1765341054405,-500.0,0.00015491,2]
[398054371,1765341054414,-500.0,0.00015491,2]
[398054372,1765341054423,-500.0,0.00015491,2]
[398054373,1765341054433,-500.0,0.00015491,2]
[398054374,1765341054442,-500.0,0.00015491,2]
[398054375,1765341054451,-500.0,0.00015491,2]
[398054376,1765341054460,-500.0,0.00015491,2]
[398054377,1765341054469,-500.0,0.00015491,2]
[398054378,1765341054478,-500.0,0.00015491,2]
[398054379,1765341054487,-500.0,0.00015491,2]
[398054380,1765341054496,-500.0,0.00015491,2]
[398054381,1765341054505,-500.0,0.00015491,2]
[398054382,1765341054514,-210.35575593,0.00015491,2]
[398054383,1765341054523,-500.0,0.00015491,2]
[398054384,1765341054533,-500.0,0.00015491,2]
[398054385,1765341054543,-500.0,0.00015491,2]
[398054386,1765341054552,-503.63132037,0.00015491,2]
[398054387,1765341054561,-500.0,0.00015491,2]
[398054388,1765341054571,-500.0,0.00015491,2]
[398054389,1765341054580,-500.0,0.00015491,2]
[398054390,1765341054591,-500.0,0.00015491,2]
[398054391,1765341054601,-500.0,0.00015491,2]
[398054392,1765341054610,-500.0,0.00015491,2]
[398054393,1765341054619,-586.05221253,0.00015491,2]
[398054394,1765341054631,-500.0,0.00015491,2]
[398054395,1765341054642,-638.89,0.00015491,2]
[398054396,1765341054652,-500.0,0.00015491,2]
[398054397,1765341054662,-500.0,0.00015491,2]
[398054398,1765341054675,-500.0,0.00015491,2]
[398054399,1765341054687,-569.96,0.00015491,2]
[398054400,1765341054698,-500.0,0.00015491,2]
[398054401,1765341054709,-500.0,0.00015491,2]
[398054402,1765341054721,-500.0,0.00015491,2]
[398054403,1765341054730,-500.0,0.00015491,2]
[398054404,1765341054740,-500.0,0.00015491,2]
[398054405,1765341054750,-501.47252794,0.00015491,2]
[398054406,1765341054759,-2218.11,0.00015491,2]
[398054407,1765341054768,-500.0,0.00015491,2]
[398054408,1765341054936,-500.0,0.00015491,2]
[398054409,1765341054946,-500.0,0.00015491,2]
[398054410,1765341054955,-500.0,0.00015491,2]
[398054411,1765341054963,-500.0,0.00015491,2]
[398054412,1765341054973,-500.0,0.00015491,2]
[398054413,1765341054982,-504.11197428,0.00015491,2]
[398054414,1765341054993,-500.37198025,0.00015491,2]
[398054415,1765341055003,-500.0,0.00015491,2]
[398054416,1765341055015,-1419.3,0.00015491,2]
[398054417,1765341055025,-577.31,0.00015491,2]
[398054418,1765341055034,-500.0,0.00015491,2]
[398054419,1765341055044,-238.91300925,0.00015491,2]
[398054420,1765341055053,-500.0,0.00015491,2]
[398054421,1765341055062,-500.0,0.00015491,2]
[398054422,1765341055072,-500.0,0.00015491,2]
[398054423,1765341055081,-500.0,0.00015491,2]
[398054424,1765341055091,-500.0,0.00015491,2]
[398054425,1765341055103,-500.0,0.00015491,2]
[398054426,1765341055113,-500.0,0.00015491,2]
[398054427,1765341055122,-500.0,0.00015491,2]
[398054428,1765341055133,-500.0,0.00015491,2]
[398054429,1765341055142,-500.0,0.00015491,2]
[398054430,1765341055153,-500.0,0.00015491,2]
[398054431,1765341055163,-500.0,0.00015491,2]
[398054432,1765341055174,-500.0,0.00015491,2]
[398054433,1765341055183,-500.0,0.00015491,2]
[398054434,1765341055193,-500.0,0.00015491,2]
[398054435,1765341055203,-569.55,0.00015491,2]
[398054436,1765341055212,-500.0,0.00015491,2]
[398054437,1765341055222,-500.0,0.00015491,2]
[398054438,1765341055231,-500.0,0.00015491,2]
[398054439,1765341055242,-500.0,0.00015491,2]
[398054440,1765341055252,-500.0,0.00015491,2]
[398054441,1765341055262,-500.0,0.00015491,2]
[398054442,1765341055271,-500.0,0.00015491,2]
[398054443,1765341055281,-500.0,0.00015491,2]
[398054444,1765341055291,-500.0,0.00015491,2]
[398054445,1765341055300,-500.0,0.00015491,2]
[398054446,1765341055309,-500.0,0.00015491,2]
[398054447,1765341055319,-500.0,0.00015491,2]
[398054448,1765341055328,-500.0,0.00015491,2]
[398054449,1765341055338,-500.0,0.00015491,2]
[398054450,1765341055347,-500.0,0.00015491,2]
[398054451,1765341055357,-500.0,0.00015491,2]
[398054452,1765341055366,-768.58,0.00015491,2]
[398054453,1765341055376,-552.37,0.00015491,2]
[398054454,1765341055386,-500.0,0.00015491,2]
[398054455,1765341055395,-667.25,0.00015491,2]
[398054456,1765341055404,-631.32,0.00015491,2]
[398054457,1765341055414,-500.0,0.00015491,2]
[398054458,1765341055423,-500.0,0.00015491,2]
[398054459,1765341055432,-500.0,0.00015491,2]
[398054460,1765341055441,-500.0,0.00015491,2]
[398054461,1765341055451,-500.0,0.00015491,2]
[398054462,1765341055460,-500.0,0.00015491,2]
[398054463,1765341055469,-964.56,0.00015491,2]
[398054464,1765341055479,-500.0,0.00015491,2]
[398054465,1765341055489,-500.0,0.00015491,2]
[398054466,1765341055498,-500.0,0.00015491,2]
[398054467,1765341055507,-500.0,0.00015491,2]
[398054468,1765341055516,-509.53,0.00015491,2]
[398054469,1765341055526,-500.0,0.00015491,2]
[398054470,1765341055536,-500.0,0.00015491,2]
[398054471,1765341055545,-500.0,0.00015491,2]
[398054472,1765341055555,-586.3,0.00015491,2]
[398054473,1765341055564,-676.01,0.00015491,2]
[398054474,1765341055573,-500.0,0.00015491,2]
[398054475,1765341055582,-500.0,0.00015491,2]
[398054476,1765341055591,-500.0,0.00015491,2]
[398054477,1765341055601,-500.0,0.00015491,2]
[398054478,1765341055610,-514.56872947,0.00015491,2]
[398054479,1765341055622,-500.0,0.00015491,2]
[398054480,1765341055631,-500.0,0.00015491,2]
[398054481,1765341055641,-619.36,0.00015491,2]
[398054482,1765341055650,-500.0,0.00015491,2]
[398054483,1765341055659,-500.0,0.00015491,2]
[398054484,1765341055668,-727.25,0.00015491,2]
[398054485,1765341055677,-500.0,0.00015491,2]
[398054486,1765341055686,-500.0,0.00015491,2]
[398054487,1765341055695,-500.0,0.00015491,2]
[398054488,1765341055705,-151.000001,0.00015491,2]
[398054489,1765341055715,-500.0,0.00015491,2]
[398054490,1765341055724,-500.0,0.00015491,2]
[398054491,1765341055733,-500.0,0.00015491,2]
[398054492,1765341055742,-500.0,0.00015491,2]
[398054493,1765341055751,-500.0,0.00015491,2]
[398054494,1765341055760,-500.0,0.00015491,2]
[398054495,1765341055769,-500.0,0.00015491,2]
[398054496,1765341055778,-500.0,0.00015491,2]
[398054497,1765341055787,-500.0,0.00015491,2]
[398054498,1765341055796,-500.0,0.00015491,2]
[398054499,1765341055805,-500.0,0.00015491,2]
[398054500,1765341055814,-500.0,0.00015491,2]
[398054501,1765341055823,-151.0,0.00015491,2]
[398054502,1765341055832,-500.0,0.00015491,2]
[398054503,1765341055841,-500.0,0.00015491,2]
[398054504,1765341055850,-500.0,0.00015491,2]
[398054505,1765341055859,-500.0,0.00015491,2]
[398054506,1765341055868,-500.0,0.00015491,2]
[398054507,1765341055877,-500.0,0.00015491,2]
[398054508,1765341055886,-153.89422174,0.00015491,2]
[398054509,1765341055894,-159.878817,0.00015491,2]
[398054510,1765341055903,-166.66,0.00015494,2]
[398054511,1765341055912,-1000.0,0.000155,2]
[398054512,1765341055921,-1006.0,0.000155,2]
[398054513,1765341055930,-3132.34814614,0.00015555,2]
[398054514,1765341055939,-500.0,0.00015563,2]
[398054515,1765341055948,-500.0,0.00015563,2]
[398054516,1765341055957,-500.0,0.00015563,2]
[398054517,1765341055966,-507.4,0.00015563,2]
[398054518,1765341055975,-841.27,0.00015563,2]
[398054519,1765341055984,-500.0,0.00015563,2]
[398054520,1765341055993,-500.0,0.00015563,2]
[398054521,1765341056002,-781.47,0.00015563,2]
[398054522,1765341056010,-500.0,0.00015563,2]
[398054523,1765341056020,-500.0,0.00015563,2]
[398054524,1765341056030,-500.0,0.00015563,2]
[398054525,1765341056039,-610.79,0.00015563,2]
[398054526,1765341056048,-500.0,0.00015563,2]
[398054527,1765341056058,-601.31,0.00015563,2]
[398054528,1765341056068,-705.42,0.00015563,2]
[398054529,1765341056078,-500.0,0.00015563,2]
[398054530,1765341056087,-1611.22,0.00015563,2]
[398054531,1765341056096,-500.0,0.00015563,2]
[398054532,1765341056106,-500.0,0.00015563,2]
[398054533,1765341056115,-500.0,0.00015563,2]
[398054534,1765341056124,-500.0,0.00015563,2]
[398054535,1765341056133,-500.0,0.00015563,2]
[398054536,1765341056143,-649.17,0.00015563,2]
[398054537,1765341056151,-500.0,0.00015563,2]
[398054538,1765341056161,-616.28,0.00015563,2]
[398054539,1765341056170,-644.38,0.00015563,2]
[398054540,1765341056179,-500.0,0.00015563,2]
[398054541,1765341056189,-702.6,0.00015563,2]
[398054542,1765341056198,-500.0,0.00015563,2]
[398054543,1765341056207,-500.0,0.00015563,2]
[398054544,1765341056218,-644.23,0.00015563,2]
[398054545,1765341056227,-500.0,0.00015563,2]
[398054546,1765341056236,-686.64,0.00015563,2]
[398054547,1765341056245,-500.0,0.00015563,2]
[398054548,1765341056255,-500.0,0.00015563,2]
[398054549,1765341056264,-500.0,0.00015563,2]
[398054550,1765341056273,-500.0,0.00015563,2]
[398054551,1765341056283,-500.0,0.00015563,2]
[398054552,1765341056293,-681.86,0.00015563,2]
[398054553,1765341056302,-855.32,0.00015563,2]
[398054554,1765341056311,-512.1,0.00015563,2]
[398054555,1765341056321,-947.95,0.00015563,2]
[398054556,1765341056331,-854.82,0.00015563,2]
[398054557,1765341056340,-981.33,0.00015563,2]
[398054558,1765341056350,-500.0,0.00015563,2]
[398054559,1765341056359,-758.4,0.00015563,2]
[398054560,1765341056368,-609.38,0.00015563,2]
[398054561,1765341056377,-543.57,0.00015563,2]
[398054562,1765341056386,-519.24,0.00015563,2]
[398054563,1765341056396,-866.11,0.00015563,2]
[398054564,1765341056405,-500.0,0.00015563,2]
[398054565,1765341056414,-500.0,0.00015563,2]
[398054566,1765341056423,-735.65,0.00015563,2]
[398054567,1765341056432,-860.79,0.00015563,2]
[398054568,1765341056441,-500.0,0.00015563,2]
[398054569,1765341056451,-500.0,0.00015563,2]
[398054570,1765341056460,-1891.39,0.00015563,2]
[398054571,1765341056470,-1068.95,0.00015563,2]
[398054572,1765341056479,-500.0,0.00015563,2]
[398054573,1765341056488,-1230.95,0.00015563,2]
[398054574,1765341056498,-500.0,0.00015563,2]
[398054575,1765341056507,-500.0,0.00015563,2]
[398054576,1765341056516,-500.0,0.00015563,2]
[398054577,1765341056527,-500.0,0.00015563,2]
[398054578,1765341056536,-500.0,0.00015563,2]
[398054579,1765341056545,-500.0,0.00015563,2]
[398054580,1765341056554,-922.49,0.00015563,2]
[398054581,1765341056563,-500.0,0.00015563,2]
[398054582,1765341056573,-500.0,0.00015563,2]
[398054583,1765341056582,-500.0,0.00015563,2]
[398054584,1765341056593,-500.0,0.00015563,2]
[398054585,1765341056603,-500.0,0.00015563,2]
[398054586,1765341056612,-3348.58,0.00015563,2]
[398054587,1765341056621,-546.59,0.00015563,2]
[398054588,1765341056631,-500.0,0.00015563,2]
[398054589,1765341056639,-541.8,0.00015563,2]
[398054590,1765341056649,-500.0,0.00015563,2]
[398054591,1765341056658,-931.07,0.00015563,2]
[398054592,1765341056668,-511.36740246,0.00015563,2]
[398054593,1765341056677,-500.0,0.00015563,2]
[398054594,1765341056686,-500.0,0.00015563,2]
[398054595,1765341056695,-500.0,0.00015563,2]
[398054596,1765341056704,-828.34,0.00015563,2]
[398054597,1765341056714,-500.0,0.00015563,2]
[398054598,1765341056725,-500.0,0.00015563,2]
[398054599,1765341056735,-500.0,0.00015563,2]
[398054600,1765341056744,-500.0,0.00015563,2]
[398054601,1765341056753,-500.0,0.00015563,2]
[398054602,1765341056762,-231.58039633,0.00015563,2]
[398054603,1765341056772,-500.0,0.00015563,2]
[398054604,1765341056781,-500.0,0.00015563,2]
[398054605,1765341056791,-500.0,0.00015563,2]
[398054606,1765341056800,-500.0,0.00015563,2]
[398054607,1765341056809,-500.0,0.00015563,2]
[398054608,1765341056818,-500.0,0.00015563,2]
[398054609,1765341056829,-544.08,0.00015563,2]
[398054610,1765341056839,-500.0,0.00015563,2]
[398054611,1765341056848,-500.0,0.00015563,2]
[398054612,1765341056857,-500.0,0.00015563,2]
[398054613,1765341056867,-500.0,0.00015563,2]
[398054614,1765341056876,-500.0,0.00015563,2]
[398054615,1765341056885,-500.0,0.00015563,2]
[398054616,1765341056894,-500.0,0.00015563,2]
[398054617,1765341056904,-500.0,0.00015563,2]
[398054618,1765341056913,-500.0,0.00015564,2]
[398054619,1765341056922,-667.41,0.00015564,2]
[398054620,1765341056931,-500.0,0.00015564,2]
[398054621,1765341056948,-500.0,0.00015564,2]
[398054622,1765341056957,-500.0,0.00015564,2]
[398054623,1765341056966,-500.0,0.00015564,2]
[398054624,1765341056975,-500.0,0.00015564,2]
[398054625,1765341056984,-500.0,0.00015564,2]
[398054626,1765341056993,-500.0,0.00015564,2]
[398054627,1765341057002,-500.0,0.00015564,2]
[398054628,1765341057011,-500.0,0.00015564,2]
[398054629,1765341057020,-500.0,0.00015564,2]
[398054630,1765341057029,-500.0,0.00015564,2]
[398054631,1765341057038,-396.09485769,0.00015564,2]
[398054632,1765341057801,-103.90514231,0.00015564,2]
[398054633,1765341057821,-500.0,0.00015564,2]
[398054634,1765341057839,-500.0,0.00015564,2]
[398054635,1765341057858,-500.0,0.00015564,2]
[398054636,1765341057874,-500.0,0.00015564,2]
[398054637,1765341057893,-500.0,0.00015564,2]
[398054638,1765341057910,-500.0,0.00015564,2]
[398054639,1765341057924,-500.0,0.00015564,2]
[398054640,1765341057942,-505.4977848,0.00015564,2]
[398054641,1765341057954,-506.39578637,0.00015564,2]
[398054642,1765341057974,-500.0,0.00015564,2]
[398054643,1765341057988,-500.0,0.00015564,2]
[398054644,1765341058002,-500.0,0.00015564,2]